[Event "*** Titled Tuesday Blitz"]
[Site "Chess.com"]
[Date "2020.04.28"]
[Round "1"]
[White "talaicito"]
[Black "doons21"]
[Result "0-1"]
[WhiteElo "2303"]
[BlackElo "2622"]
[TimeControl "180+1"]
[EndTime "10:07:57 PDT"]
[Termination "doons21 won by resignation"]

1. d4 {[%clk 0:03:00.9]} 1... Nf6 {[%clk 0:02:59.8]} 2. Nc3 {[%clk 0:03:00]}
2... d5 {[%clk 0:02:59.2]} 3. Bf4 {[%clk 0:02:59.8]} 3... c6 {[%clk 0:02:59.1]}
4. e3 {[%clk 0:02:59.7]} 4... Qb6 {[%clk 0:02:59.4]} 5. Rb1 {[%clk 0:02:58.5]}
5... Bg4 {[%clk 0:02:46.9]} 6. f3 {[%clk 0:02:57.3]} 6... Bh5 {[%clk 0:02:43.5]}
7. g4 {[%clk 0:02:57.5]} 7... Bg6 {[%clk 0:02:43.7]} 8. h4 {[%clk 0:02:58.3]}
8... h6 {[%clk 0:02:31.7]} 9. h5 {[%clk 0:02:58]} 9... Bh7 {[%clk 0:02:31.6]}
10. Bd3 {[%clk 0:02:58.6]} 10... e6 {[%clk 0:02:24.8]} 11. Bxh7 {[%clk 0:02:56]}
11... Nxh7 {[%clk 0:02:25.7]} 12. Qd3 {[%clk 0:02:55.9]} 12... Qa6 {[%clk
0:02:22.9]} 13. Qxa6 {[%clk 0:02:50.1]} 13... Nxa6 {[%clk 0:02:22.6]} 14. a3
{[%clk 0:02:50.7]} 14... Kd7 {[%clk 0:02:17.6]} 15. Nge2 {[%clk 0:02:50.6]}
15... Bd6 {[%clk 0:02:16.5]} 16. Kf2 {[%clk 0:02:50.6]} 16... f6 {[%clk
0:02:07.6]} 17. Bxd6 {[%clk 0:02:44.5]} 17... Kxd6 {[%clk 0:02:07]} 18. b4
{[%clk 0:02:45.3]} 18... Nc7 {[%clk 0:02:05]} 19. e4 {[%clk 0:02:10.7]} 19...
Ng5 {[%clk 0:02:01.6]} 20. Nf4 {[%clk 0:02:00.6]} 20... e5 {[%clk 0:01:37.9]}
21. dxe5+ {[%clk 0:01:54.1]} 21... fxe5 {[%clk 0:01:38.8]} 22. Ng6 {[%clk
0:01:54.2]} 22... Rhe8 {[%clk 0:01:38.6]} 23. exd5 {[%clk 0:01:48.8]} 23... Nxd5
{[%clk 0:01:11.9]} 24. Rbd1 {[%clk 0:01:48.3]} 24... Rad8 {[%clk 0:01:08.4]} 25.
Ne4+ {[%clk 0:01:37.9]} 25... Kc7 {[%clk 0:01:04.8]} 26. Nxg5 {[%clk 0:01:23.4]}
26... hxg5 {[%clk 0:01:05.7]} 27. h6 {[%clk 0:01:23.7]} 27... gxh6 {[%clk
0:00:37.8]} 28. Rxh6 {[%clk 0:01:24.6]} 28... Re6 {[%clk 0:00:31.7]} 29. c4
{[%clk 0:01:12]} 29... Nf6 {[%clk 0:00:24.5]} 30. Rxd8 {[%clk 0:01:07.6]} 30...
Kxd8 {[%clk 0:00:24.1]} 31. Rh8+ {[%clk 0:01:03.4]} 31... Kc7 {[%clk 0:00:23.7]}
32. Nf8 {[%clk 0:00:51.2]} 32... Re8 {[%clk 0:00:21.7]} 33. Ng6 {[%clk
0:00:50.7]} 33... Rxh8 {[%clk 0:00:20.1]} 34. Nxh8 {[%clk 0:00:51]} 34... e4
{[%clk 0:00:21]} 35. Ng6 {[%clk 0:00:47.4]} 35... exf3 {[%clk 0:00:19.8]} 36.
Kxf3 {[%clk 0:00:47.2]} 36... Kd6 {[%clk 0:00:20.7]} 37. Nf8 {[%clk 0:00:33.1]}
37... Ke5 {[%clk 0:00:20.1]} 38. c5 {[%clk 0:00:26.9]} 38... Kd4 {[%clk
0:00:20]} 39. Ne6+ {[%clk 0:00:26.7]} 39... Kc3 {[%clk 0:00:20.2]} 40. Nxg5
{[%clk 0:00:27.4]} 40... Kb3 {[%clk 0:00:20.5]} 41. Ne4 {[%clk 0:00:27.5]} 41...
Ng8 {[%clk 0:00:19.8]} 42. Nd6 {[%clk 0:00:24.2]} 42... Kxa3 {[%clk 0:00:20.2]}
43. Nxb7 {[%clk 0:00:24.9]} 43... Kxb4 {[%clk 0:00:20.9]} 44. Kf4 {[%clk
0:00:25.1]} 44... a5 {[%clk 0:00:21.2]} 45. Nd8 {[%clk 0:00:20.6]} 45... Kxc5
{[%clk 0:00:20.4]} 46. Ne6+ {[%clk 0:00:20.6]} 46... Kb4 {[%clk 0:00:20.6]} 47.
Nd4 {[%clk 0:00:20.2]} 47... c5 {[%clk 0:00:20.7]} 48. Nc2+ {[%clk 0:00:20.3]}
48... Kb3 {[%clk 0:00:20.1]} 49. Na1+ {[%clk 0:00:13.9]} 49... Kb2 {[%clk
0:00:20.1]} 50. g5 {[%clk 0:00:13.3]} 50... a4 {[%clk 0:00:19.9]} 51. Kf5 {[%clk
0:00:14.2]} 51... a3 {[%clk 0:00:20.4]} 52. Kg6 {[%clk 0:00:15.1]} 52... Ne7+
{[%clk 0:00:20.4]} 53. Kf7 {[%clk 0:00:16]} 53... Nf5 {[%clk 0:00:20.3]} 54. g6
{[%clk 0:00:15]} 54... Kxa1 {[%clk 0:00:20.2]} 55. Kf6 {[%clk 0:00:15.6]} 55...
Nd6 {[%clk 0:00:20.1]} 56. Ke6 {[%clk 0:00:15.3]} 56... Ne8 {[%clk 0:00:19.5]}
57. Ke7 {[%clk 0:00:15.6]} 57... Ng7 {[%clk 0:00:19.5]} 58. Kf6 {[%clk
0:00:15.3]} 58... Nh5+ {[%clk 0:00:19.2]} 59. Kg5 {[%clk 0:00:15.5]} 59... Ng7
{[%clk 0:00:19.5]} 60. Kf6 {[%clk 0:00:15.7]} 60... Kb1 {[%clk 0:00:18.3]} 61.
Kxg7 {[%clk 0:00:15.6]} 61... a2 {[%clk 0:00:19.2]} 62. Kf7 {[%clk 0:00:15.8]}
62... a1=Q {[%clk 0:00:20.1]} 63. g7 {[%clk 0:00:16.1]} 63... Qxg7+ {[%clk
0:00:20.4]} 64. Kxg7 {[%clk 0:00:15.9]} 64... c4 {[%clk 0:00:21.3]} 65. Kf6
{[%clk 0:00:16.4]} 65... c3 {[%clk 0:00:22.2]} 66. Ke5 {[%clk 0:00:17]} 66... c2
{[%clk 0:00:23.1]} 67. Kd4 {[%clk 0:00:17.6]} 67... c1=Q {[%clk 0:00:23.9]} 0-1

[Event "*** Titled Tuesday Blitz"]
[Site "Chess.com"]
[Date "2020.04.28"]
[Round "1"]
[White "KNVB"]
[Black "LogoCzar"]
[Result "1-0"]
[WhiteElo "2720"]
[BlackElo "2382"]
[TimeControl "180+1"]
[EndTime "10:07:58 PDT"]
[Termination "KNVB won by resignation"]

1. d4 {[%clk 0:02:58.3]} 1... d5 {[%clk 0:02:58.9]} 2. Bf4 {[%clk 0:02:57.9]}
2... c5 {[%clk 0:02:57.6]} 3. e3 {[%clk 0:02:57.5]} 3... Nc6 {[%clk 0:02:57.5]}
4. c3 {[%clk 0:02:54.8]} 4... Nf6 {[%clk 0:02:52.5]} 5. Nd2 {[%clk 0:02:54.2]}
5... Bf5 {[%clk 0:02:51.9]} 6. Qb3 {[%clk 0:02:48.8]} 6... Qc8 {[%clk
0:02:50.5]} 7. dxc5 {[%clk 0:02:31]} 7... e5 {[%clk 0:02:49.3]} 8. Bg5 {[%clk
0:02:27.9]} 8... Be6 {[%clk 0:02:46.1]} 9. Bxf6 {[%clk 0:01:35.2]} 9... gxf6
{[%clk 0:02:45.3]} 10. Qa4 {[%clk 0:01:28.5]} 10... Bxc5 {[%clk 0:02:44]} 11.
Ngf3 {[%clk 0:01:21.5]} 11... a6 {[%clk 0:02:35.5]} 12. Be2 {[%clk 0:00:55.4]}
12... b5 {[%clk 0:02:35.3]} 13. Qh4 {[%clk 0:00:54.9]} 13... Be7 {[%clk
0:02:31.8]} 14. O-O {[%clk 0:00:46.4]} 14... f5 {[%clk 0:02:31.3]} 15. Qh5
{[%clk 0:00:44.4]} 15... Qd8 {[%clk 0:02:05.6]} 16. Rfd1 {[%clk 0:00:38.5]}
16... O-O {[%clk 0:02:05]} 17. e4 {[%clk 0:00:25.8]} 17... fxe4 {[%clk
0:01:56.8]} 18. Nxe4 {[%clk 0:00:26.7]} 18... f6 {[%clk 0:01:29.8]} 19. Bd3
{[%clk 0:00:20.2]} 19... Rf7 {[%clk 0:01:17.5]} 20. Ng3 {[%clk 0:00:16.5]} 20...
Bf8 {[%clk 0:00:56.4]} 21. Bf5 {[%clk 0:00:16.7]} 21... Qd7 {[%clk 0:00:52.9]}
22. Rd2 {[%clk 0:00:16]} 22... Ne7 {[%clk 0:00:51.2]} 23. Nh4 {[%clk 0:00:13.6]}
23... Nxf5 {[%clk 0:00:48]} 24. Nhxf5 {[%clk 0:00:14.5]} 24... Kh8 {[%clk
0:00:41.1]} 25. Rad1 {[%clk 0:00:14.8]} 25... Bc5 {[%clk 0:00:39.1]} 26. a3
{[%clk 0:00:13.8]} 26... Rg8 {[%clk 0:00:37.7]} 27. h3 {[%clk 0:00:13.1]} 27...
Rg5 {[%clk 0:00:28.4]} 28. Qf3 {[%clk 0:00:13.2]} 28... Bxf5 {[%clk 0:00:22.1]}
29. Rxd5 {[%clk 0:00:12.4]} 29... Qe6 {[%clk 0:00:16.1]} 30. Rxc5 {[%clk
0:00:10.3]} 30... e4 {[%clk 0:00:15.7]} 31. Qf4 {[%clk 0:00:07.3]} 31... Bg6
{[%clk 0:00:11.7]} 32. Rd8+ {[%clk 0:00:07]} 32... Kg7 {[%clk 0:00:11.2]} 33.
Rxg5 {[%clk 0:00:06.8]} 33... fxg5 {[%clk 0:00:11.3]} 34. Qxg5 {[%clk
0:00:07.7]} 34... e3 {[%clk 0:00:10.1]} 35. Qxe3 {[%clk 0:00:07.8]} 35... Qxe3
{[%clk 0:00:09.7]} 36. fxe3 {[%clk 0:00:08.7]} 36... Rc7 {[%clk 0:00:09.9]} 37.
Ne2 {[%clk 0:00:06.5]} 37... b4 {[%clk 0:00:10.2]} 38. axb4 {[%clk 0:00:06.6]}
38... a5 {[%clk 0:00:10]} 39. bxa5 {[%clk 0:00:07.5]} 39... Ra7 {[%clk
0:00:10.3]} 40. b4 {[%clk 0:00:07.6]} 40... Rc7 {[%clk 0:00:10.4]} 41. Kf2
{[%clk 0:00:06.9]} 41... Rf7+ {[%clk 0:00:09.1]} 42. Ke1 {[%clk 0:00:06.7]}
42... Re7 {[%clk 0:00:09.4]} 43. Kd2 {[%clk 0:00:07]} 43... h5 {[%clk
0:00:09.8]} 44. Nf4 {[%clk 0:00:07.1]} 44... Bf5 {[%clk 0:00:09.7]} 45. b5
{[%clk 0:00:07]} 45... h4 {[%clk 0:00:10.2]} 46. b6 {[%clk 0:00:07]} 46... Be4
{[%clk 0:00:10.4]} 47. Rd4 {[%clk 0:00:06.6]} 47... Bb7 {[%clk 0:00:09.9]} 48.
Rc4 {[%clk 0:00:07]} 48... Re5 {[%clk 0:00:09.3]} 49. Rc7+ {[%clk 0:00:07.9]}
49... Kf6 {[%clk 0:00:08.5]} 50. Rxb7 {[%clk 0:00:07.6]} 50... Rxa5 {[%clk
0:00:08.6]} 51. Rc7 {[%clk 0:00:07.6]} 51... Rb5 {[%clk 0:00:08.5]} 52. b7
{[%clk 0:00:08.1]} 52... Kf5 {[%clk 0:00:08.9]} 53. c4 {[%clk 0:00:08.1]} 53...
Rb2+ {[%clk 0:00:08.4]} 54. Kc3 {[%clk 0:00:08.7]} 54... Rb1 {[%clk 0:00:08.8]}
55. Kc2 {[%clk 0:00:08.4]} 55... Rb4 {[%clk 0:00:08.8]} 56. c5 {[%clk
0:00:08.6]} 56... Ke4 {[%clk 0:00:08.1]} 57. c6 {[%clk 0:00:09]} 57... Kxe3
{[%clk 0:00:07.8]} 58. Rc8 {[%clk 0:00:09.3]} 58... Kxf4 {[%clk 0:00:07.2]} 59.
b8=Q+ {[%clk 0:00:09.7]} 1-0

[Event "*** Titled Tuesday Blitz"]
[Site "Chess.com"]
[Date "2020.04.28"]
[Round "1"]
[White "Eliwood44"]
[Black "Savagelittlemole"]
[Result "1/2-1/2"]
[WhiteElo "2310"]
[BlackElo "2612"]
[TimeControl "180+1"]
[EndTime "10:07:58 PDT"]
[Termination "Game drawn - insufficient material"]

1. d4 {[%clk 0:02:57.8]} 1... Nf6 {[%clk 0:02:58.1]} 2. Nf3 {[%clk 0:02:54.6]}
2... g6 {[%clk 0:02:58.4]} 3. Nc3 {[%clk 0:02:51.9]} 3... d5 {[%clk 0:02:56.8]}
4. Bf4 {[%clk 0:02:51.4]} 4... Bg7 {[%clk 0:02:50.3]} 5. Nb5 {[%clk 0:02:50.6]}
5... Na6 {[%clk 0:02:47.1]} 6. e3 {[%clk 0:02:44.6]} 6... O-O {[%clk 0:02:44.6]}
7. Be2 {[%clk 0:02:38.1]} 7... c6 {[%clk 0:02:40.8]} 8. Nc3 {[%clk 0:02:37.5]}
8... Nh5 {[%clk 0:02:37.5]} 9. Be5 {[%clk 0:02:35.6]} 9... f6 {[%clk 0:02:33.4]}
10. Bg3 {[%clk 0:02:34.8]} 10... e5 {[%clk 0:02:27.5]} 11. O-O {[%clk
0:02:20.4]} 11... e4 {[%clk 0:02:25]} 12. Nd2 {[%clk 0:02:19]} 12... Nxg3 {[%clk
0:02:21.7]} 13. hxg3 {[%clk 0:02:00.4]} 13... Nc7 {[%clk 0:02:19]} 14. Na4
{[%clk 0:01:49.9]} 14... Ne6 {[%clk 0:02:00.6]} 15. c4 {[%clk 0:01:47.4]} 15...
f5 {[%clk 0:01:48]} 16. Rc1 {[%clk 0:01:39.4]} 16... g5 {[%clk 0:01:38.6]} 17.
Qb3 {[%clk 0:01:33.4]} 17... Kh8 {[%clk 0:01:35.6]} 18. cxd5 {[%clk 0:01:30.1]}
18... cxd5 {[%clk 0:01:34.6]} 19. Nc5 {[%clk 0:01:30.3]} 19... Nxc5 {[%clk
0:01:31.1]} 20. Rxc5 {[%clk 0:01:31.2]} 20... Be6 {[%clk 0:01:28.8]} 21. Rfc1
{[%clk 0:01:21.4]} 21... f4 {[%clk 0:01:19.3]} 22. Nxe4 {[%clk 0:01:11.4]} 22...
fxe3 {[%clk 0:01:17]} 23. fxe3 {[%clk 0:01:10.3]} 23... b6 {[%clk 0:01:13.3]}
24. Rc7 {[%clk 0:01:07.3]} 24... Rc8 {[%clk 0:01:05.7]} 25. Rxc8 {[%clk
0:00:51.8]} 25... Bxc8 {[%clk 0:01:06.6]} 26. Nc3 {[%clk 0:00:41.6]} 26... Qe8
{[%clk 0:00:58.2]} 27. Nxd5 {[%clk 0:00:39.3]} 27... Be6 {[%clk 0:00:55.4]} 28.
Nc7 {[%clk 0:00:38.3]} 28... Bxb3 {[%clk 0:00:53.1]} 29. Nxe8 {[%clk 0:00:38.4]}
29... Rxe8 {[%clk 0:00:51.6]} 30. axb3 {[%clk 0:00:38.3]} 30... Bxd4 {[%clk
0:00:47.5]} 31. exd4 {[%clk 0:00:36]} 31... Rxe2 {[%clk 0:00:47.3]} 32. Rc8+
{[%clk 0:00:36.4]} 32... Kg7 {[%clk 0:00:44.9]} 33. Rc7+ {[%clk 0:00:36.9]}
33... Kg6 {[%clk 0:00:43.6]} 34. Rxa7 {[%clk 0:00:37.1]} 34... Rxb2 {[%clk
0:00:40.7]} 35. d5 {[%clk 0:00:36.1]} 35... Rxb3 {[%clk 0:00:38.5]} 36. d6
{[%clk 0:00:36.2]} 36... Rxg3 {[%clk 0:00:36.1]} 37. Rb7 {[%clk 0:00:33]} 37...
Rd3 {[%clk 0:00:34.8]} 38. Rxb6 {[%clk 0:00:32.3]} 38... h5 {[%clk 0:00:32.8]}
39. Kf2 {[%clk 0:00:31.5]} 39... Kf5 {[%clk 0:00:30.9]} 40. Ke2 {[%clk
0:00:29.5]} 40... Rd5 {[%clk 0:00:28.8]} 41. Ke3 {[%clk 0:00:28.9]} 41... h4
{[%clk 0:00:27]} 42. Ra6 {[%clk 0:00:24.6]} 42... g4 {[%clk 0:00:24.6]} 43. Rb6
{[%clk 0:00:23.1]} 43... h3 {[%clk 0:00:23.3]} 44. gxh3 {[%clk 0:00:22.4]} 44...
gxh3 {[%clk 0:00:24.1]} 45. Kf2 {[%clk 0:00:22.3]} 45... Rd3 {[%clk 0:00:20.7]}
46. d7 {[%clk 0:00:16.7]} 46... Rxd7 {[%clk 0:00:17.3]} 47. Rb3 {[%clk
0:00:15.9]} 47... Rd2+ {[%clk 0:00:15]} 48. Kg1 {[%clk 0:00:12.3]} 48... h2+
{[%clk 0:00:12.6]} 49. Kh1 {[%clk 0:00:12.3]} 49... Kg4 {[%clk 0:00:12.7]} 50.
Rb4+ {[%clk 0:00:12.5]} 50... Kf3 {[%clk 0:00:11.8]} 51. Rb3+ {[%clk 0:00:12.7]}
51... Ke4 {[%clk 0:00:12.2]} 52. Rb4+ {[%clk 0:00:12.7]} 52... Kd3 {[%clk
0:00:12.1]} 53. Rb3+ {[%clk 0:00:12.2]} 53... Kc2 {[%clk 0:00:12.2]} 54. Rh3
{[%clk 0:00:12]} 54... Kd1 {[%clk 0:00:09.8]} 55. Rxh2 {[%clk 0:00:11.6]} 55...
Rxh2+ {[%clk 0:00:10.3]} 56. Kxh2 {[%clk 0:00:12.5]} 1/2-1/2

[Event "*** Titled Tuesday Blitz"]
[Site "Chess.com"]
[Date "2020.04.28"]
[Round "1"]
[White "XiaoKangZhong"]
[Black "VincentKeymer"]
[Result "0-1"]
[WhiteElo "2382"]
[BlackElo "2720"]
[TimeControl "180+1"]
[EndTime "10:07:59 PDT"]
[Termination "VincentKeymer won by checkmate"]

1. e4 {[%clk 0:02:58]} 1... c5 {[%clk 0:02:59.1]} 2. c3 {[%clk 0:02:57.9]} 2...
Nf6 {[%clk 0:02:58.3]} 3. e5 {[%clk 0:02:58.1]} 3... Nd5 {[%clk 0:02:58.8]} 4.
d4 {[%clk 0:02:59]} 4... cxd4 {[%clk 0:02:59]} 5. cxd4 {[%clk 0:02:58.7]} 5...
d6 {[%clk 0:02:59.5]} 6. Nf3 {[%clk 0:02:58.6]} 6... Nc6 {[%clk 0:02:58.3]} 7.
Bc4 {[%clk 0:02:57.7]} 7... dxe5 {[%clk 0:02:58.8]} 8. dxe5 {[%clk 0:02:57.6]}
8... Ndb4 {[%clk 0:02:58.8]} 9. O-O {[%clk 0:02:57.4]} 9... Qxd1 {[%clk
0:02:56.8]} 10. Rxd1 {[%clk 0:02:58.3]} 10... Nc2 {[%clk 0:02:56.1]} 11. Na3
{[%clk 0:02:56.9]} 11... Nxa1 {[%clk 0:02:55.3]} 12. Nb5 {[%clk 0:02:53.7]}
12... Bd7 {[%clk 0:02:35]} 13. Nc7+ {[%clk 0:02:43.9]} 13... Kd8 {[%clk
0:02:34.6]} 14. Nxa8 {[%clk 0:02:44.8]} 14... Kc8 {[%clk 0:02:24]} 15. Bf4
{[%clk 0:02:36.5]} 15... e6 {[%clk 0:02:04.5]} 16. Rxa1 {[%clk 0:01:53.7]} 16...
Kb8 {[%clk 0:02:03.5]} 17. Ng5 {[%clk 0:01:53.3]} 17... Be7 {[%clk 0:01:41.4]}
18. Rd1 {[%clk 0:01:33.6]} 18... Be8 {[%clk 0:01:39.5]} 19. Ne4 {[%clk
0:01:05.9]} 19... Kxa8 {[%clk 0:01:36.9]} 20. Nd6 {[%clk 0:01:05]} 20... Kb8
{[%clk 0:01:17.6]} 21. Bb5 {[%clk 0:00:47.4]} 21... a6 {[%clk 0:01:10.9]} 22.
Nxe8 {[%clk 0:00:42.2]} 22... Rxe8 {[%clk 0:00:50.1]} 23. Bxc6 {[%clk
0:00:41.6]} 23... bxc6 {[%clk 0:00:50.5]} 24. Kf1 {[%clk 0:00:38]} 24... Kc7
{[%clk 0:00:49.2]} 25. Ke2 {[%clk 0:00:36.6]} 25... Rb8 {[%clk 0:00:48.4]} 26.
b3 {[%clk 0:00:36.6]} 26... Rb5 {[%clk 0:00:45.2]} 27. Bg3 {[%clk 0:00:32.8]}
27... Ra5 {[%clk 0:00:37.2]} 28. Rd2 {[%clk 0:00:32.7]} 28... Bb4 {[%clk
0:00:33.9]} 29. Rc2 {[%clk 0:00:32.5]} 29... Rd5 {[%clk 0:00:33.5]} 30. f4
{[%clk 0:00:30.5]} 30... h5 {[%clk 0:00:32.1]} 31. Bf2 {[%clk 0:00:29.7]} 31...
g6 {[%clk 0:00:28.1]} 32. Be3 {[%clk 0:00:28.9]} 32... Be7 {[%clk 0:00:24]} 33.
Rc4 {[%clk 0:00:26]} 33... Ra5 {[%clk 0:00:20.5]} 34. Rc2 {[%clk 0:00:25]} 34...
Kb7 {[%clk 0:00:20.3]} 35. Kd3 {[%clk 0:00:23.2]} 35... Rd5+ {[%clk 0:00:20.3]}
36. Ke2 {[%clk 0:00:23.6]} 36... c5 {[%clk 0:00:20.7]} 37. Rc4 {[%clk
0:00:23.3]} 37... a5 {[%clk 0:00:20.3]} 38. Ra4 {[%clk 0:00:22.7]} 38... Kb6
{[%clk 0:00:20.4]} 39. Bd2 {[%clk 0:00:21.9]} 39... c4 {[%clk 0:00:17.5]} 40.
bxc4 {[%clk 0:00:21]} 40... Rd4 {[%clk 0:00:14.4]} 41. Be3 {[%clk 0:00:21.2]}
41... Bc5 {[%clk 0:00:13]} 42. Bxd4 {[%clk 0:00:21.7]} 42... Bxd4 {[%clk
0:00:13.9]} 43. Kd3 {[%clk 0:00:22.2]} 43... Bc5 {[%clk 0:00:14.4]} 44. Ke4
{[%clk 0:00:21.7]} 44... Ka6 {[%clk 0:00:14.2]} 45. Kd3 {[%clk 0:00:22.2]} 45...
Kb6 {[%clk 0:00:14.5]} 46. Kc3 {[%clk 0:00:22.6]} 46... Ka6 {[%clk 0:00:13.5]}
47. a3 {[%clk 0:00:23.1]} 47... Kb6 {[%clk 0:00:13.4]} 48. Rb4+ {[%clk
0:00:23.5]} 48... axb4+ {[%clk 0:00:13.3]} 49. axb4 {[%clk 0:00:24.4]} 49... Bg1
{[%clk 0:00:13.4]} 50. h3 {[%clk 0:00:23.5]} 50... Bh2 {[%clk 0:00:13.6]} 51.
Kd4 {[%clk 0:00:22.7]} 51... Bxf4 {[%clk 0:00:13]} 52. Ke4 {[%clk 0:00:23.1]}
52... Bd2 {[%clk 0:00:13]} 53. b5 {[%clk 0:00:23.3]} 53... Kc5 {[%clk
0:00:13.2]} 54. Kd3 {[%clk 0:00:23.9]} 54... Ba5 {[%clk 0:00:12.8]} 55. g4
{[%clk 0:00:23.4]} 55... Bc7 {[%clk 0:00:12.6]} 56. gxh5 {[%clk 0:00:22.1]}
56... gxh5 {[%clk 0:00:13.5]} 57. Ke4 {[%clk 0:00:22.4]} 57... Kxc4 {[%clk
0:00:13.8]} 58. b6 {[%clk 0:00:23]} 58... Bxb6 {[%clk 0:00:13.7]} 59. Kf4 {[%clk
0:00:23.9]} 59... Kd5 {[%clk 0:00:12.6]} 60. Kg5 {[%clk 0:00:24.6]} 60... Kxe5
{[%clk 0:00:13.5]} 61. Kxh5 {[%clk 0:00:25]} 61... f5 {[%clk 0:00:14.3]} 62. h4
{[%clk 0:00:25.3]} 62... f4 {[%clk 0:00:14.3]} 63. Kg4 {[%clk 0:00:26]} 63...
Ke4 {[%clk 0:00:14.6]} 64. h5 {[%clk 0:00:26.7]} 64... Bd4 {[%clk 0:00:15.1]}
65. h6 {[%clk 0:00:27.2]} 65... f3 {[%clk 0:00:16]} 66. Kg5 {[%clk 0:00:27.7]}
66... f2 {[%clk 0:00:16.1]} 67. Kg6 {[%clk 0:00:28.4]} 67... f1=Q {[%clk
0:00:16.3]} 68. Kh7 {[%clk 0:00:29.2]} 68... Qf7# {[%clk 0:00:15.9]} 0-1

[Event "*** Titled Tuesday Blitz"]
[Site "Chess.com"]
[Date "2020.04.28"]
[Round "1"]
[White "ajdemipopushi"]
[Black "eldur16"]
[Result "1-0"]
[WhiteElo "2284"]
[BlackElo "2583"]
[TimeControl "180+1"]
[EndTime "10:07:59 PDT"]
[Termination "ajdemipopushi won on time"]

1. Nf3 {[%clk 0:02:56.1]} 1... g6 {[%clk 0:02:59.5]} 2. g3 {[%clk 0:02:56.5]}
2... Bg7 {[%clk 0:02:59.4]} 3. d4 {[%clk 0:02:56.8]} 3... b5 {[%clk 0:02:57.9]}
4. Bg2 {[%clk 0:02:56.8]} 4... Bb7 {[%clk 0:02:57.9]} 5. Na3 {[%clk 0:02:56.8]}
5... a6 {[%clk 0:02:57.3]} 6. O-O {[%clk 0:02:55.8]} 6... Nf6 {[%clk 0:02:56.7]}
7. c4 {[%clk 0:02:55.9]} 7... b4 {[%clk 0:02:52.6]} 8. Nc2 {[%clk 0:02:55.7]}
8... a5 {[%clk 0:02:52.1]} 9. b3 {[%clk 0:02:55.3]} 9... O-O {[%clk 0:02:50.8]}
10. a3 {[%clk 0:02:55.6]} 10... Na6 {[%clk 0:02:48]} 11. axb4 {[%clk 0:02:38.8]}
11... axb4 {[%clk 0:02:47.2]} 12. Bb2 {[%clk 0:02:36.5]} 12... e6 {[%clk
0:02:43.3]} 13. Re1 {[%clk 0:02:29.8]} 13... Qe7 {[%clk 0:02:42.2]} 14. e3
{[%clk 0:02:21.1]} 14... Rfb8 {[%clk 0:02:37.7]} 15. Nd2 {[%clk 0:02:01.7]}
15... Bxg2 {[%clk 0:02:34.8]} 16. Kxg2 {[%clk 0:02:01.2]} 16... d5 {[%clk
0:02:25.2]} 17. Qf3 {[%clk 0:01:58.4]} 17... c6 {[%clk 0:02:22]} 18. Ra4 {[%clk
0:01:52]} 18... Nc7 {[%clk 0:02:12.3]} 19. Rea1 {[%clk 0:01:50.9]} 19... Rxa4
{[%clk 0:02:11]} 20. Rxa4 {[%clk 0:01:50.5]} 20... Nd7 {[%clk 0:01:19.6]} 21. e4
{[%clk 0:01:36.2]} 21... c5 {[%clk 0:01:05.8]} 22. exd5 {[%clk 0:01:33.6]} 22...
exd5 {[%clk 0:01:05.2]} 23. Ra7 {[%clk 0:01:28.5]} 23... Qd6 {[%clk 0:01:02.4]}
24. cxd5 {[%clk 0:01:25.6]} 24... Nxd5 {[%clk 0:00:56.4]} 25. Nc4 {[%clk
0:01:24.4]} 25... Qe6 {[%clk 0:00:55.4]} 26. dxc5 {[%clk 0:00:55.6]} 26... Bxb2
{[%clk 0:00:53.4]} 27. Nxb2 {[%clk 0:00:43.6]} 27... Nxc5 {[%clk 0:00:49.1]} 28.
Nc4 {[%clk 0:00:40.5]} 28... Rf8 {[%clk 0:00:42.2]} 29. Nd4 {[%clk 0:00:36.4]}
29... Qe4 {[%clk 0:00:40.4]} 30. Qxe4 {[%clk 0:00:23.3]} 30... Nxe4 {[%clk
0:00:40.2]} 31. Ra5 {[%clk 0:00:20.8]} 31... Ndc3 {[%clk 0:00:36]} 32. Ne3
{[%clk 0:00:13.5]} 32... Rd8 {[%clk 0:00:33.2]} 33. Nec2 {[%clk 0:00:13.5]}
33... h5 {[%clk 0:00:23.8]} 34. Ra7 {[%clk 0:00:13]} 34... Nd2 {[%clk
0:00:20.3]} 35. Rb7 {[%clk 0:00:11]} 35... Nd5 {[%clk 0:00:18.3]} 36. Rb5 {[%clk
0:00:10.4]} 36... Kf8 {[%clk 0:00:14.4]} 37. Nxb4 {[%clk 0:00:10.3]} 37... Nxb4
{[%clk 0:00:13.2]} 38. Rxb4 {[%clk 0:00:10.4]} 38... Ne4 {[%clk 0:00:12.9]} 39.
f3 {[%clk 0:00:09.9]} 39... Nc3 {[%clk 0:00:12.4]} 40. Rc4 {[%clk 0:00:09.7]}
40... Nd5 {[%clk 0:00:11.8]} 41. Kf2 {[%clk 0:00:09.1]} 41... Ra8 {[%clk
0:00:11.3]} 42. f4 {[%clk 0:00:08.8]} 42... Ra1 {[%clk 0:00:10.2]} 43. Rc5
{[%clk 0:00:07.8]} 43... Nf6 {[%clk 0:00:09.2]} 44. b4 {[%clk 0:00:07.4]} 44...
Rb1 {[%clk 0:00:07.7]} 45. b5 {[%clk 0:00:07.2]} 45... Rb2+ {[%clk 0:00:07.8]}
46. Kf3 {[%clk 0:00:06.9]} 46... Ng4 {[%clk 0:00:04.9]} 47. h3 {[%clk 0:00:06]}
47... Nf6 {[%clk 0:00:02.3]} 48. g4 {[%clk 0:00:06]} 48... hxg4+ {[%clk
0:00:01.5]} 49. hxg4 {[%clk 0:00:06.1]} 49... Rb4 {[%clk 0:00:01.6]} 50. g5
{[%clk 0:00:05.8]} 1-0